bitfinex/quotes_SOLUSD_20260105
["timestamp","ask_amount","ask_price","bid_price","bid_amount"]
[1767629130574,0.71566743,135.93,135.88,10.26167943]
[1767629130783,0.70047574,135.92,135.86,39.16162744]
[1767629131077,0.70047574,135.87,135.85,0.2]
[1767629131379,10.27774911,135.87,135.85,0.2]
[1767629131963,39.17612909,135.89,135.85,0.2]
[1767629131964,0.70047574,135.88,135.85,0.2]
[1767629132183,18.39240704,135.93,135.86,9.57727337]
[1767629132362,18.39240704,135.93,135.85,7.56101465]
[1767629132363,0.70047574,135.91,135.87,9.57727337]
[1767629132564,0.70047574,135.93,135.85,31.47895463]
[1767629132870,0.70047574,135.91,135.85,25.96366463]
[1767629133079,0.70047574,135.91,135.86,9.57727337]
[1767629133375,0.70047574,135.91,135.85,17.13828802]
[1767629133376,0.70047574,135.9,135.85,17.13828802]
[1767629133567,10.27774911,135.88,135.85,0.2]
[1767629133759,0.70047574,135.86,135.83,0.2]
[1767629133957,0.32656082,135.86,135.83,0.2]
[1767629134460,13.42,135.9,135.8,7.44560982]
[1767629134461,9.57727337,135.85,135.8,7.44560982]
[1767629134662,9.57727337,135.82,135.8,5.31952474]
[1767629134864,8.35013837,135.9,135.8,5.31952474]
[1767629134865,9.57727337,135.81,135.8,5.31952474]
[1767629135278,9.57727337,135.82,135.8,5.31952474]
[1767629135588,9.57727337,135.82,135.79,0.2]
[1767629136167,13.42,135.83,135.79,0.89067167]
[1767629136360,9.57727337,135.82,135.79,0.89067167]
[1767629136763,7.36221217,135.83,135.79,0.89067167]
[1767629136962,9.57727337,135.82,135.79,0.89067167]
[1767629137593,9.57727337,135.83,135.79,0.89067167]
[1767629137765,9.57727337,135.83,135.8,0.69067167]
[1767629137970,13.42,135.84,135.81,0.69067167]
[1767629138165,7.36052961,135.86,135.8,0.69067167]
[1767629138166,13.42,135.86,135.8,0.69067167]
[1767629138474,13.42,135.86,135.79,25.97483938]
[1767629138475,13.42,135.86,135.82,0.69067167]
[1767629138666,22.99727337,135.86,135.82,0.69067167]
[1767629138862,13.42,135.86,135.82,0.69067167]
[1767629139284,16.93715129,135.88,135.83,0.69067167]
[1767629139487,7.35987792,135.88,135.83,0.69067167]
[1767629139765,30.35637146,135.89,135.84,0.69067167]
[1767629140175,9.57727337,135.88,135.84,0.69067167]
[1767629140374,30.35637146,135.89,135.84,0.69067167]
[1767629140576,20.77909809,135.89,135.85,9.57727337]
[1767629140771,36.7814605,135.94,135.86,10.26794504]
[1767629140989,9.57727337,135.91,135.86,0.69067167]
[1767629141204,7.35889322,135.89,135.86,0.69067167]
[1767629142580,7.35789664,135.91,135.88,9.57727337]
[1767629142914,20.7774953,135.92,135.89,9.57727337]
[1767629143072,13.42,135.92,135.89,10.26794504]
[1767629143271,20.77729226,135.92,135.89,10.26794504]
[1767629143473,20.77729226,135.92,135.89,0.69067167]
[1767629143673,20.77729226,135.92,135.87,0.69067167]
[1767629143887,20.77729226,135.92,135.88,9.57727337]
[1767629144092,30.35456563,135.92,135.87,0.69067167]
[1767629144370,20.77729226,135.92,135.87,10.26794504]
[1767629144600,48.74773808,135.92,135.87,0.69067167]
[1767629144801,48.74773808,135.92,135.87,10.26794504]
[1767629146002,9.57727337,135.91,135.86,0.69067167]
[1767629146450,9.57727337,135.9,135.84,0.69067167]
[1767629146701,39.17046471,135.92,135.83,0.69067167]
[1767629146702,9.57727337,135.88,135.83,0.69067167]
[1767629146878,9.57727337,135.87,135.82,0.69067167]
[1767629147077,13.42,135.86,135.81,10.26794504]
[1767629147372,9.57727337,135.85,135.79,9.77727337]
[1767629147591,9.57727337,135.85,135.79,10.46794504]
[1767629147777,7.36160188,135.84,135.8,10.26794504]
[1767629147972,13.42,135.86,135.83,10.26794504]
[1767629148901,13.36000001,135.86,135.83,9.57727337]
[1767629149070,13.36000001,135.86,135.82,0.69067167]
[1767629149268,13.36000001,135.86,135.82,10.26794504]
[1767629149481,13.36000001,135.86,135.83,9.57727337]
[1767629149684,13.36000001,135.86,135.83,10.26794504]
[1767629150302,13.36000001,135.86,135.84,0.69067167]
[1767629150479,20.77977544,135.88,135.84,0.69067167]
[1767629150873,20.77977544,135.88,135.82,8.05293036]
[1767629151081,5.89988552,135.87,135.81,0.69067167]
[1767629151287,5.89988552,135.87,135.81,6.59055719]
[1767629151984,7.36051818,135.86,135.82,5.89988552]
[1767629152187,7.36051818,135.86,135.82,6.59055719]
[1767629153333,19.31988552,135.85,135.8,6.61511608]
[1767629153608,19.31988552,135.85,135.79,6.81511608]
[1767629153911,7.36160188,135.84,135.8,5.89988552]
[1767629154706,7.36160188,135.84,135.79,0.91523056]
[1767629155110,7.36160188,135.84,135.79,6.81511608]
[1767629155411,20.78160188,135.84,135.8,6.61511608]
[1767629155589,20.78160188,135.84,135.8,0.71523056]
[1767629155788,13.42,135.84,135.8,6.61511608]
[1767629156595,13.42,135.84,135.8,0.71523056]
[1767629156801,7.36214385,135.83,135.79,0.2]
[1767629157304,20.781814,135.84,135.8,0.71523056]
[1767629157805,45.08570423,135.84,135.79,0.2]
[1767629158395,5.89988552,135.81,135.79,1e-08]
[1767629158618,13.42,135.8,135.79,1e-08]
[1767629158791,13.42,135.81,135.79,1e-08]
[1767629158991,13.42,135.81,135.79,5.89988553]
[1767629159295,13.42,135.83,135.8,5.89988552]
[1767629159788,13.42,135.83,135.8,6.61511608]
[1767629159986,13.42,135.83,135.8,0.71523056]
[1767629160184,13.42,135.83,135.81,5.89988552]
[1767629160605,13.42,135.83,135.8,6.61511608]
[1767629160803,13.42,135.83,135.81,0.69589455]
[1767629161013,7.3617039,135.84,135.81,0.69589455]
[1767629161218,18.39930955,135.88,135.83,6.59578007]
[1767629161386,13.42,135.87,135.83,5.89988552]
[1767629161590,13.42,135.87,135.8,8.05942096]
[1767629161790,5.89988552,135.86,135.79,8.0599211]
[1767629161991,13.42,135.87,135.79,1e-08]
[1767629162189,5.89988552,135.82,135.79,1e-08]
[1767629162412,13.42,135.82,135.79,1e-08]
[1767629162809,5.89988552,135.83,135.79,1e-08]
[1767629163007,5.89988552,135.81,135.79,1e-08]
[1767629163325,13.42,135.82,135.77,0.2]
[1767629163326,5.89988552,135.8,135.77,1e-08]
[1767629163620,5.89988552,135.78,135.76,1e-08]
[1767629163791,5.89988552,135.77,135.75,1e-08]
[1767629163997,19.31988552,135.76,135.74,1e-08]
[1767629164303,0.32353842,135.84,135.72,6.79578007]
[1767629164304,13.42,135.75,135.72,6.79578007]
[1767629164495,20.78627087,135.76,135.72,0.89589455]
[1767629164705,45.10100612,135.76,135.72,0.2]
[1767629164910,5.89988552,135.74,135.72,1e-08]
[1767629165214,39.14112061,135.76,135.68,0.2]
[1767629165215,19.31988552,135.73,135.68,1e-08]
[1767629165397,13.42,135.73,135.68,1e-08]
[1767629165597,25.7811206,135.76,135.68,6.59578008]
[1767629165916,1.07683142,135.75,135.71,5.89988552]
[1767629166095,1.07683142,135.75,135.7,0.69589455]
[1767629166295,1.07683142,135.75,135.71,6.59578007]
[1767629166496,1.07683142,135.75,135.72,0.69589455]
[1767629166692,1.07683142,135.75,135.72,6.59578007]
[1767629166897,5.89988552,135.74,135.68,0.69589456]
[1767629167096,5.89988552,135.72,135.68,1e-08]
[1767629167422,13.42,135.73,135.67,1e-08]
[1767629167714,5.89988552,135.7,135.67,1e-08]
[1767629167922,13.42,135.69,135.67,1e-08]
[1767629168095,19.31988552,135.69,135.65,0.2]
[1767629168294,5.89988552,135.67,135.65,1e-08]
[1767629168702,20.78981728,135.69,135.65,1e-08]
[1767629168899,26.6897028,135.69,135.65,1e-08]
[1767629169122,5.89988552,135.68,135.65,1e-08]
[1767629169318,39.2141669,135.69,135.65,1e-08]
[1767629169497,1.10083142,135.68,135.65,1e-08]
[1767629169692,7.00071694,135.68,135.65,1e-08]
[1767629170023,1.10083142,135.67,135.62,0.2]
[1767629170191,19.31988552,135.66,135.62,0.2]
[1767629170396,5.89988552,135.64,135.62,0.2]
[1767629170590,7.37191301,135.65,135.61,0.2]
[1767629170591,13.42,135.63,135.61,0.2]
[1767629171415,0.37583142,135.66,135.65,0.69589455]
[1767629171618,0.37583142,135.66,135.62,13.27337931]
[1767629171619,0.37583142,135.66,135.63,5.89988552]
[1767629172304,0.37583142,135.66,135.62,8.06938834]
[1767629172305,0.37583142,135.66,135.62,0.69589455]
[1767629172504,0.37583142,135.66,135.62,6.59578007]
[1767629172707,7.74736629,135.66,135.62,0.69589455]
[1767629172919,13.82592819,135.66,135.61,0.2]
[1767629173101,5.89988552,135.65,135.61,0.2]
[1767629173294,13.42,135.65,135.61,0.2]
[1767629173492,13.42,135.65,135.58,2.57806035]
[1767629173493,0.43729466,135.63,135.58,2.57806035]
[1767629173691,13.42,135.62,135.58,2.57806035]
[1767629174121,0.95583142,135.65,135.6,6.59578007]
[1767629174309,14.39583142,135.65,135.61,5.89988552]
[1767629174620,14.39583142,135.65,135.6,13.97028862]
[1767629174824,21.76783784,135.65,135.6,0.69589455]
[1767629175115,21.76783784,135.65,135.59,5.89988552]
[1767629175116,27.76672336,135.65,135.59,5.89988552]
[1767629175319,0.1032174,135.63,135.58,2.57806035]
[1767629175491,13.95656477,135.62,135.58,2.57806035]
[1767629175694,13.44,135.62,135.56,0.69589455]
[1767629175895,13.44,135.62,135.54,0.2]
[1767629175896,13.44,135.62,135.58,6.59578007]
[1767629176121,13.44,135.62,135.58,13.97136278]
[1767629176295,13.44,135.62,135.58,6.59578007]
[1767629176710,0.52074,135.61,135.55,5.89988552]
[1767629176905,6.42062552,135.61,135.55,6.59578007]
[1767629177124,0.52074,135.61,135.56,5.89988552]
[1767629177320,0.52074,135.61,135.54,0.89589455]
[1767629177524,5.89988552,135.59,135.54,0.89589455]
[1767629177819,6.41235815,135.57,135.54,0.2]
[1767629178120,0.51247263,135.57,135.54,0.2]
[1767629178415,20.91486352,135.58,135.54,0.2]
[1767629178807,26.81474904,135.58,135.54,0.2]
[1767629179009,26.81474904,135.58,135.52,0.69589455]
[1767629179010,6.42062552,135.57,135.52,0.69589455]
[1767629179195,6.42062552,135.57,135.4,5.97685823]
[1767629179196,6.42062552,135.57,135.46,42.42619361]
[1767629179396,0.52074,135.57,135.52,5.89988552]
[1767629179614,0.52074,135.57,135.51,13.9751443]
[1767629179996,0.52074,135.57,135.51,5.89988552]
[1767629180322,0.51656477,135.55,135.5,7.37994022]
[1767629180491,13.89656478,135.55,135.5,13.27982574]
[1767629180692,39.26078486,135.55,135.44,0.69589455]
[1767629180924,5.89988552,135.52,135.45,0.69589455]
[1767629181102,5.89988552,135.52,135.47,6.59578007]
[1767629181103,13.44,135.51,135.47,6.59578007]
[1767629181305,13.44,135.51,135.48,6.59578007]
[1767629181505,5.89988552,135.54,135.49,13.97637069]
[1767629181506,13.44,135.54,135.49,13.97637069]
[1767629181721,13.44,135.54,135.5,0.69589455]
[1767629182106,13.44,135.54,135.5,13.97581945]
[1767629182308,13.44,135.54,135.5,8.07593393]
[1767629182519,13.44,135.54,135.5,13.97574131]
[1767629182726,6.85571694,135.56,135.52,0.69589455]
[1767629182727,0.95583142,135.56,135.52,0.69589455]
[1767629182926,0.95583142,135.56,135.52,6.59578007]
[1767629183131,0.95583142,135.56,135.53,0.69589455]
[1767629183440,0.95583142,135.56,135.53,6.59578007]
[1767629183807,0.23083142,135.56,135.55,6.59578007]
[1767629184006,26.88376229,135.6,135.55,0.69589455]
[1767629184230,20.98387677,135.6,135.55,6.59578007]
[1767629184433,26.88376229,135.6,135.53,6.59578007]
[1767629184734,6.0785619,135.56,135.49,8.07648353]
[1767629184915,19.5185619,135.56,135.5,5.89988552]
[1767629185438,19.5185619,135.56,135.52,13.2787325]
[1767629185439,13.44,135.56,135.52,13.2787325]
[1767629185607,13.44,135.56,135.52,13.27879992]
[1767629185924,13.44,135.56,135.52,13.97469447]
[1767629186110,13.44,135.56,135.53,5.89988552]
[1767629186310,13.44,135.56,135.52,13.97469447]
[1767629186513,13.44,135.56,135.54,5.89988552]
[1767629186810,21.1300408,135.59,135.53,13.97414218]
[1767629187320,27.1941977,135.59,135.53,0.69589455]
[1767629187522,6.55400685,135.58,135.49,0.69589455]
[1767629187729,5.89988552,135.57,135.51,6.59578007]
[1767629187905,5.89988552,135.56,135.51,0.69589455]
[1767629188108,19.33988552,135.56,135.51,0.69589455]
[1767629188718,27.36633412,135.56,135.51,0.69589455]
[1767629189428,5.89988552,135.55,135.51,0.69589455]
[1767629189619,27.36633412,135.56,135.51,0.69589455]
[1767629189819,5.89988552,135.55,135.49,13.97627061]
[1767629190015,39.90846689,135.56,135.49,13.97627061]
[1767629190335,5.89988552,135.55,135.49,13.97627061]
[1767629190719,39.90846689,135.56,135.49,13.97627061]
[1767629190720,45.80835241,135.56,135.5,6.59578007]
[1767629190922,27.36633412,135.56,135.5,8.07592699]
[1767629191126,6.07385642,135.55,135.48,13.97478498]
[1767629191309,5.89988552,135.51,135.46,0.69395573]
[1767629191516,13.44,135.51,135.46,0.69395573]
[1767629191815,13.44,135.51,135.48,0.69395573]
[1767629192128,13.44,135.52,135.48,13.97488513]
[1767629192630,13.44,135.52,135.49,8.07457217]
[1767629192822,13.44,135.52,135.49,0.69395573]
[1767629194129,13.44,135.52,135.46,0.69395573]
[1767629194130,21.50314482,135.52,135.46,0.69395573]
[1767629194433,13.44,135.54,135.5,5.89988552]
[1767629194606,13.44,135.54,135.51,0.69395573]
[1767629195615,20.81794814,135.54,135.51,0.69395573]
[1767629195824,13.44,135.54,135.51,0.69395573]
[1767629196118,13.44,135.54,135.52,0.69395573]
[1767629197062,5.89988552,135.53,135.48,0.69395573]
[1767629197746,39.26285823,135.54,135.48,0.69395573]
[1767629197953,5.89988552,135.53,135.48,0.69395573]
[1767629198263,0.67305458,135.53,135.48,0.69395573]
[1767629198471,13.44,135.54,135.5,0.69395573]
[1767629199161,13.44,135.54,135.51,0.69395573]
[1767629199475,20.81798413,135.54,135.51,0.69395573]
[1767629199642,20.81798413,135.54,135.49,13.28034063]
[1767629199643,5.89988552,135.53,135.49,0.69395573]
[1767629199958,5.89988552,135.53,135.47,8.07547295]
[1767629200352,5.89988552,135.53,135.48,0.69395573]
[1767629201053,13.27863613,135.53,135.47,7.38165789]
[1767629201251,32.56312654,135.54,135.48,5.89988552]
[1767629201252,21.4965048,135.54,135.48,5.89988552]
[1767629201459,27.39639032,135.54,135.48,5.89988552]
[1767629201653,27.39639032,135.54,135.47,7.38165789]
[1767629201962,27.39639032,135.54,135.47,13.28154341]
[1767629201963,5.89988552,135.53,135.47,13.28154341]
[1767629202164,21.4965048,135.54,135.47,13.28154341]
[1767629202348,5.89988552,135.53,135.45,31.35508328]
[1767629202549,13.27833977,135.53,135.47,5.89988552]
[1767629202764,7.37847859,135.53,135.46,5.89988552]
[1767629203067,5.89988552,135.51,135.46,0.69395573]
[1767629203236,19.33988552,135.51,135.46,0.69395573]
[1767629203442,5.89988552,135.5,135.46,0.69395573]
[1767629203661,13.44,135.51,135.46,0.69395573]
[1767629203851,5.89988552,135.5,135.46,0.69395573]
[1767629204033,5.89988552,135.49,135.46,0.69395573]
[1767629204238,14.12937879,135.51,135.46,0.69395573]
[1767629204440,5.89988552,135.49,135.46,0.69395573]
[1767629204646,7.38043903,135.5,135.46,0.69395573]
[1767629204846,14.12937879,135.51,135.46,0.69395573]
[1767629204847,21.50904924,135.51,135.46,0.69395573]
[1767629205159,5.89988552,135.5,135.46,0.69395573]
[1767629206041,13.27996297,135.5,135.44,7.38312187]
[1767629206241,13.27996297,135.5,135.44,0.69395573]
[1767629206242,5.89988552,135.49,135.44,0.69395573]
[1767629206844,5.89988552,135.47,135.42,8.07813864]
[1767629207061,5.89988552,135.46,135.42,0.69395573]
[1767629207276,25.83026195,135.5,135.4,7.58541373]
[1767629207277,62.73063095,135.5,135.4,7.58541373]
[1767629207439,5.89988552,135.47,135.42,0.69395573]
[1767629207796,19.35988552,135.46,135.42,0.69395573]
[1767629208081,19.35988552,135.46,135.42,0.19395573]
[1767629208372,0.68937879,135.45,135.4,0.2]
[1767629208670,21.53175189,135.46,135.4,7.58550713]
[1767629209168,6.58926431,135.45,135.4,7.58550713]
[1767629209581,19.14175201,135.49,135.4,26.04931806]
[1767629209752,20.04926431,135.48,135.42,5.89988552]
[1767629209953,14.14937879,135.48,135.42,6.59384125]
[1767629210162,13.97102523,135.47,135.41,0.69395573]
[1767629210644,6.58926431,135.46,135.41,0.69395573]
[1767629210845,13.46,135.45,135.4,0.2]
[1767629211076,20.04926431,135.45,135.4,0.2]
[1767629211453,20.04926431,135.45,135.4,7.58540555]
[1767629211680,13.46,135.45,135.41,8.07880645]
[1767629212201,0.63379616,135.44,135.4,0.2]
[1767629212402,5.89988552,135.43,135.4,0.2]
[1767629212608,10.28477468,135.44,135.4,0.2]
[1767629213008,9.65097852,135.43,135.4,0.2]
[1767629213300,10.28477468,135.44,135.4,0.2]
[1767629213904,9.65097852,135.43,135.4,0.2]
[1767629214113,0.63379616,135.44,135.4,0.2]
[1767629214411,17.66854392,135.44,135.4,0.2]
[1767629214902,20.84296657,135.45,135.4,0.873046]
[1767629215116,13.46,135.45,135.41,0.673046]
[1767629215405,17.03291826,135.47,135.41,0.673046]
[1767629215902,17.73749755,135.47,135.41,0.673046]
[1767629216113,9.65097852,135.45,135.4,0.2]
[1767629216285,17.03432169,135.44,135.4,0.2]
[1767629216688,9.65097852,135.42,135.4,0.2]
[1767629216993,8.08792246,135.44,135.4,0.2]
[1767629217186,9.65097852,135.42,135.4,0.2]
[1767629217587,10.35555781,135.42,135.4,0.2]
[1767629217789,9.65097852,135.41,135.4,0.2]
[1767629218003,10.35555781,135.42,135.4,0.2]
[1767629218714,0.70457929,135.42,135.4,0.2]
[1767629218884,10.35555781,135.42,135.4,0.2]
[1767629219302,0.70457929,135.42,135.4,0.2]
[1767629219513,17.74095359,135.42,135.4,0.2]
[1767629220205,14.22806798,135.45,135.4,0.2]
[1767629220405,17.74019765,135.44,135.4,0.2]
[1767629220604,8.08830191,135.44,135.4,0.2]
[1767629220824,17.74019765,135.44,135.4,0.2]
[1767629221027,9.65189574,135.42,135.4,0.2]
[1767629221230,10.33535887,135.41,135.4,1e-08]
[1767629221418,10.33535887,135.41,135.36,0.2]
[1767629221419,0.68346313,135.4,135.36,0.2]
[1767629221605,0.68346313,135.38,135.36,0.2]
[1767629222001,10.33535887,135.4,135.36,0.2]
[1767629222201,0.68346313,135.4,135.36,7.58769403]
[1767629222398,13.46,135.42,135.37,0.69781732]
[1767629222640,17.03561836,135.44,135.38,8.08443277]
[1767629222923,14.14346313,135.45,135.39,0.69781732]
[1767629223124,9.65189574,135.44,135.39,0.69781732]
[1767629223308,9.65189574,135.42,135.37,8.08477644]
[1767629223513,0.68346313,135.43,135.37,8.08477644]
[1767629223714,9.65189574,135.42,135.37,8.08477644]
[1767629224219,17.03638035,135.42,135.37,8.08477644]
[1767629225021,0.68346313,135.43,135.38,0.69781732]
[1767629225220,17.03562868,135.44,135.38,0.69781732]
[1767629225411,14.14346313,135.45,135.38,0.69781732]
[1767629225611,14.14346313,135.45,135.39,0.69781732]
[1767629225903,9.65189574,135.44,135.39,0.69781732]
[1767629226104,9.65189574,135.43,135.37,8.08477644]
[1767629226305,17.03632935,135.42,135.37,0.69781732]
[1767629226929,17.03632935,135.42,135.37,8.0847846]
[1767629226930,7.38443361,135.42,135.37,8.0847846]
[1767629227124,14.14346313,135.45,135.38,0.69781732]
[1767629227309,23.79535887,135.45,135.38,0.69781732]
[1767629227505,9.65189574,135.44,135.38,0.69781732]
[1767629228000,13.46,135.45,135.38,0.69781732]
[1767629228332,13.46,135.45,135.36,0.2]
[1767629228333,0.06348869,135.46,135.4,0.69781732]
[1767629228508,17.71634918,135.49,135.4,0.69781732]
[1767629229535,9.65189574,135.47,135.4,0.69781732]
[1767629229827,10.33535887,135.48,135.4,0.69781732]
[1767629230218,31.17557493,135.5,135.44,0.69781732]
[1767629230537,14.14346313,135.5,135.43,20.84388835]
[1767629230710,14.14346313,135.5,135.43,25.84360923]
[1767629231035,14.14346313,135.5,135.43,39.30360923]
[1767629231415,0.68346313,135.52,135.44,5.51529]
[1767629231820,0.68346313,135.51,135.45,13.46]
[1767629232430,0.68346313,135.51,135.45,21.06253634]
[1767629232822,8.06299679,135.51,135.45,21.06253634]
[1767629233125,0.68346313,135.51,135.46,0.21973826]
[1767629233331,13.46,135.53,135.46,0.21973826]
[1767629233530,30.49039618,135.53,135.46,0.21973826]
[1767629234030,9.65189574,135.52,135.46,0.21973826]
[1767629234206,30.49039618,135.53,135.47,7.38170812]
[1767629234531,30.49039618,135.53,135.47,8.07952544]
[1767629234733,20.83850044,135.53,135.47,8.07952544]
[1767629234947,20.92959212,135.55,135.48,0.69781732]
[1767629235234,10.33535887,135.54,135.48,0.69781732]
[1767629235806,0.68346313,135.54,135.48,0.69781732]
[1767629236636,0.68346313,135.54,135.49,7.38061849]
[1767629237622,8.06142965,135.54,135.49,7.38061849]
[1767629237844,3.90000009,135.55,135.5,0.69781732]
[1767629238754,3.90000009,135.55,135.5,8.07753901]
[1767629240240,4.58346322,135.55,135.5,8.07753901]
[1767629241515,3.90000009,135.55,135.51,0.69781732]
[1767629241809,0.68346313,135.57,135.51,0.69781732]
[1767629242010,0.68346313,135.55,135.5,7.37972169]
[1767629242235,10.33535887,135.55,135.49,0.69781732]
[1767629242407,0.68346313,135.54,135.49,0.69781732]
[1767629242612,0.68346313,135.54,135.49,8.07841956]
[1767629243136,7.37788949,135.55,135.5,0.69781732]
[1767629243344,0.68346313,135.55,135.5,0.69781732]
[1767629243838,0.68346313,135.57,135.5,0.69781732]
[1767629244210,13.46,135.59,135.49,25.83214847]
[1767629244211,30.4872981,135.59,135.52,0.69781732]
[1767629244435,13.46,135.59,135.54,0.69781732]
[1767629244636,20.83537951,135.59,135.54,0.69781732]
[1767629245141,13.46,135.59,135.54,0.69781732]
[1767629245314,7.37430015,135.61,135.54,0.69781732]
[1767629245711,9.65189574,135.6,135.54,0.69781732]
[1767629245917,9.65189574,135.59,135.54,0.69781732]
[1767629246111,25.80951879,135.61,135.54,0.69781732]
[1767629246420,0.68346313,135.59,135.54,0.69781732]
[1767629246610,0.68346313,135.58,135.54,0.69781732]
[1767629246810,17.71038184,135.6,135.54,8.07519238]
[1767629247537,17.71038184,135.6,135.54,0.69781732]
[1767629247538,0.68346313,135.59,135.54,0.69781732]
[1767629247741,0.68346313,135.59,135.54,8.07536197]
[1767629247926,0.68346313,135.58,135.53,7.37822041]
[1767629248230,0.68346313,135.57,135.52,14.15781732]
[1767629248439,0.68346313,135.57,135.53,7.37838545]
[1767629249041,21.5190621,135.59,135.53,8.07620277]
[1767629249346,0.68346313,135.56,135.52,21.5366285]
[1767629249846,9.65189574,135.55,135.5,8.0775149]
[1767629250140,0.68346313,135.54,135.5,8.0775149]
[1767629250446,0.68346313,135.54,135.5,7.37969758]
[1767629250639,0.68346313,135.54,135.51,7.37950651]
[1767629250938,0.7139875,135.56,135.51,0.65985435]
[1767629251113,10.36588324,135.58,135.51,0.65985435]
[1767629251312,0.6923552,135.57,135.51,0.65985435]
[1767629251720,23.11189574,135.59,135.51,0.65985435]
[1767629251913,23.11189574,135.59,135.52,0.65985435]
[1767629251914,13.46,135.59,135.52,0.65985435]
[1767629252230,23.08726029,135.59,135.53,0.65985435]
[1767629252419,23.08726029,135.59,135.53,10.28711464]
[1767629252614,23.08726029,135.59,135.53,0.65985435]
[1767629252820,23.08726029,135.59,135.54,7.37789582]
[1767629253021,13.46,135.59,135.54,8.03775017]
[1767629253321,20.81390985,135.62,135.56,0.65985435]
[1767629253520,9.62726029,135.61,135.56,0.65985435]
[1767629253721,10.2482413,135.61,135.56,0.65985435]
[1767629254020,13.44,135.62,135.57,0.65985435]
[1767629254622,13.539,135.62,135.57,0.65985435]
[1767629254950,13.539,135.62,135.57,8.03586038]
[1767629255146,23.16626029,135.62,135.57,8.03586038]
[1767629255333,13.539,135.62,135.57,8.03586038]
[1767629255534,13.44,135.62,135.58,0.65985435]
[1767629255916,9.62726029,135.63,135.57,7.37600603]
[1767629256155,0.61576119,135.62,135.57,8.03586038]
[1767629256321,17.00037788,135.63,135.58,0.65985435]
[1767629256521,8.19355349,135.64,135.58,0.65985435]
[1767629256840,9.62726029,135.63,135.59,0.65985435]
[1767629257040,17.09929636,135.63,135.58,8.03539042]
[1767629257241,9.62726029,135.62,135.58,0.65985435]
[1767629257423,10.24302148,135.62,135.56,0.65985435]
[1767629257618,9.73142791,135.61,135.56,8.03650467]
[1767629257850,9.62726029,135.62,135.57,8.03606962]
[1767629258231,17.00029636,135.63,135.58,8.03546916]
[1767629258431,17.09929636,135.63,135.58,8.03546916]
[1767629259340,17.09929636,135.63,135.56,8.03617564]
[1767629259341,9.62726029,135.61,135.56,8.03617564]
[1767629259543,14.05576119,135.62,135.57,8.03608088]
[1767629259544,23.68302148,135.62,135.57,8.03608088]
[1767629259747,14.05576119,135.62,135.57,8.03608088]
[1767629260830,13.44,135.62,135.59,0.65985435]
[1767629261052,17.81558681,135.64,135.59,0.65985435]
[1767629261255,8.18832652,135.64,135.59,8.03495959]
[1767629261562,0.81576119,135.64,135.59,8.03495959]
[1767629261751,0.2,135.64,135.6,0.65985435]
[1767629262129,0.2,135.64,135.6,10.28711464]
[1767629262531,0.10416762,135.63,135.58,23.72711464]
[1767629262737,0.10416762,135.63,135.58,14.09985435]
[1767629262942,10.23790554,135.62,135.57,13.44]
[1767629263372,7.98447919,135.62,135.57,13.44]
[1767629263535,7.98447919,135.62,135.57,31.10305276]
[1767629263536,0.61064525,135.62,135.57,31.10305276]
[1767629263864,0.099,135.63,135.58,10.28711464]
[1767629264562,0.099,135.63,135.58,0.65985435]
[1767629264756,9.72626029,135.63,135.58,0.65985435]
[1767629265086,17.09935959,135.63,135.58,0.65985435]
[1767629265254,7.4720993,135.63,135.58,0.65985435]
[1767629265898,0.61576119,135.62,135.57,17.00319841]
[1767629266078,0.61576119,135.62,135.57,30.44319841]
[1767629267073,0.61576119,135.62,135.57,17.00319841]
[1767629267272,0.61576119,135.62,135.57,20.81593812]
[1767629267484,0.61576119,135.62,135.57,30.44319841]
[1767629267786,0.61576119,135.62,135.57,20.81593812]
[1767629268202,0.61576119,135.62,135.57,30.44319841]
[1767629268697,0.61576119,135.62,135.57,20.81593812]
[1767629268885,0.10416762,135.61,135.57,23.06726029]
[1767629269993,103.62098101,135.63,135.59,9.62726029]
[1767629270176,0.099,135.62,135.58,0.65985435]
[1767629270500,0.099,135.62,135.58,10.28711464]
[1767629270881,103.0,135.63,135.6,10.28711464]
[1767629271095,103.0,135.63,135.6,0.65985435]
[1767629271486,103.0,135.63,135.6,10.28711464]
[1767629271984,0.2,135.64,135.6,10.28711464]
[1767629271985,0.2,135.64,135.61,0.65985435]
[1767629272185,0.2,135.64,135.62,10.28711464]
[1767629272500,1e-08,135.64,135.62,0.65985435]
[1767629272799,1e-08,135.64,135.62,10.28711464]
[1767629272981,0.62098101,135.68,135.63,0.72295325]
[1767629273295,0.099,135.69,135.65,9.62726029]
[1767629273475,0.099,135.69,135.64,9.62726029]